[Event "Betsys MČR v online bleskovém šachu 2021"]
[Site "Chess.com"]
[Date "2021.04.17"]
[Round "7"]
[White "feela1"]
[Black "malviny"]
[Result "1-0"]
[WhiteElo "1385"]
[BlackElo "1162"]
[TimeControl "180+1"]
[EndTime "10:11:12 PDT"]
[Termination "Uživatel feela1 zvítězil matem"]

1. e4 {[%clk 0:03:00.9]} 1... e5 {[%clk 0:02:56.3]} 2. Nf3 {[%clk 0:03:00.5]}
2... Nc6 {[%clk 0:02:56.7]} 3. Bc4 {[%clk 0:02:59.9]} 3... Be7 {[%clk
0:02:56.9]} 4. O-O {[%clk 0:02:59.1]} 4... Nf6 {[%clk 0:02:57.1]} 5. d3 {[%clk
0:02:58.3]} 5... O-O {[%clk 0:02:56.8]} 6. Nc3 {[%clk 0:02:56.8]} 6... d6 {[%clk
0:02:57.1]} 7. h3 {[%clk 0:02:55.5]} 7... Nd4 {[%clk 0:02:57]} 8. Nxd4 {[%clk
0:02:50.1]} 8... exd4 {[%clk 0:02:56.6]} 9. Ne2 {[%clk 0:02:49.6]} 9... c5
{[%clk 0:02:56.6]} 10. a3 {[%clk 0:02:45.2]} 10... a6 {[%clk 0:02:55.4]} 11. Ng3
{[%clk 0:02:43.6]} 11... b5 {[%clk 0:02:54.9]} 12. Ba2 {[%clk 0:02:39.3]} 12...
Bb7 {[%clk 0:02:40.4]} 13. Bd2 {[%clk 0:02:34.4]} 13... Nd7 {[%clk 0:02:37.6]}
14. Qf3 {[%clk 0:02:30.6]} 14... Ne5 {[%clk 0:02:36.5]} 15. Qe2 {[%clk
0:02:22.7]} 15... Bh4 {[%clk 0:02:31.7]} 16. Nf5 {[%clk 0:02:20.2]} 16... g6
{[%clk 0:02:26.6]} 17. Nh6+ {[%clk 0:02:16.1]} 17... Kg7 {[%clk 0:02:25.2]} 18.
Nxf7 {[%clk 0:02:08.6]} 18... Nxf7 {[%clk 0:02:20.8]} 19. Qg4 {[%clk 0:01:50.2]}
19... Ne5 {[%clk 0:02:17.6]} 20. Qe6 {[%clk 0:01:41.5]} 20... Rf6 {[%clk
0:02:06.1]} 21. Qg8+ {[%clk 0:01:19.1]} 21... Qxg8 {[%clk 0:02:03.7]} 22. Bxg8
{[%clk 0:01:18.2]} 22... Rxg8 {[%clk 0:02:00.6]} 23. g3 {[%clk 0:01:17.6]} 23...
Nf3+ {[%clk 0:01:55.9]} 24. Kg2 {[%clk 0:01:10.7]} 24... Nxd2 {[%clk 0:01:54]}
25. Rfd1 {[%clk 0:01:06.8]} 25... Bg5 {[%clk 0:01:48]} 26. h4 {[%clk 0:01:04.7]}
26... Bh6 {[%clk 0:01:45.6]} 27. f4 {[%clk 0:01:03.5]} 27... Nxe4 {[%clk
0:01:36.8]} 28. dxe4 {[%clk 0:01:02.7]} 28... Bxe4+ {[%clk 0:01:36.7]} 29. Kh2
{[%clk 0:00:58.5]} 29... Bxc2 {[%clk 0:01:36.3]} 30. Rd2 {[%clk 0:00:57.9]}
30... Bb3 {[%clk 0:01:36.1]} 31. Re1 {[%clk 0:00:56.3]} 31... Kf7 {[%clk
0:01:35.1]} 32. Rde2 {[%clk 0:00:55]} 32... Bf8 {[%clk 0:01:21.6]} 33. Re4
{[%clk 0:00:34.6]} 33... Bc2 {[%clk 0:01:16.3]} 34. Re8 {[%clk 0:00:33.5]} 34...
Bf5 {[%clk 0:01:14.1]} 35. Ra8 {[%clk 0:00:29.3]} 35... d3 {[%clk 0:01:03.1]}
36. Ra7+ {[%clk 0:00:25.7]} 36... Be7 {[%clk 0:00:50.2]} 37. Raxe7+ {[%clk
0:00:23.7]} 37... Kf8 {[%clk 0:00:49.2]} 38. Re8+ {[%clk 0:00:22.8]} 38... Kf7
{[%clk 0:00:48.9]} 39. R1e7# {[%clk 0:00:22.1]} 1-0

[Event "Betsys MČR v online bleskovém šachu 2021"]
[Site "Chess.com"]
[Date "2021.04.17"]
[Round "7"]
[White "Pekibeast"]
[Black "HonzaRubes95"]
[Result "0-1"]
[WhiteElo "1876"]
[BlackElo "2475"]
[TimeControl "180+1"]
[EndTime "10:11:16 PDT"]
[Termination "Uživatel HonzaRubes95 zvítězil po vzdání soupeře"]

1. e4 {[%clk 0:02:55]} 1... c5 {[%clk 0:02:58]} 2. c3 {[%clk 0:02:55.2]} 2...
Nf6 {[%clk 0:02:57.1]} 3. e5 {[%clk 0:02:55.2]} 3... Nd5 {[%clk 0:02:57.3]} 4.
d4 {[%clk 0:02:56.1]} 4... cxd4 {[%clk 0:02:44.9]} 5. Nf3 {[%clk 0:02:55.2]}
5... Nc6 {[%clk 0:02:42.5]} 6. cxd4 {[%clk 0:02:54.8]} 6... d6 {[%clk
0:02:40.1]} 7. exd6 {[%clk 0:02:54.8]} 7... e6 {[%clk 0:02:35.3]} 8. Nc3 {[%clk
0:02:55.7]} 8... Bxd6 {[%clk 0:02:33.6]} 9. Nxd5 {[%clk 0:02:55.4]} 9... exd5
{[%clk 0:02:33.6]} 10. Bd3 {[%clk 0:02:54.5]} 10... Qe7+ {[%clk 0:02:33.3]} 11.
Be3 {[%clk 0:02:54]} 11... O-O {[%clk 0:02:31.5]} 12. O-O {[%clk 0:02:53.8]}
12... h6 {[%clk 0:02:26.6]} 13. h3 {[%clk 0:02:52.3]} 13... Be6 {[%clk
0:02:14.9]} 14. Re1 {[%clk 0:02:51.8]} 14... Rac8 {[%clk 0:02:01.2]} 15. a3
{[%clk 0:02:51.6]} 15... Qf6 {[%clk 0:01:59.2]} 16. Rc1 {[%clk 0:02:50.1]} 16...
Rfe8 {[%clk 0:01:49]} 17. Bb1 {[%clk 0:02:49.4]} 17... Ne7 {[%clk 0:01:42.9]}
18. Qb3 {[%clk 0:02:47.8]} 18... Rxc1 {[%clk 0:01:36.7]} 19. Rxc1 {[%clk
0:02:43.9]} 19... Bxh3 {[%clk 0:01:23.1]} 20. Bxh6 {[%clk 0:02:11.7]} 20... Qxh6
{[%clk 0:01:20.5]} 21. Re1 {[%clk 0:02:09.5]} 21... Bg4 {[%clk 0:01:14.2]} 22.
Ne5 {[%clk 0:01:59.8]} 22... Qd2 {[%clk 0:00:59.8]} 23. Kf1 {[%clk 0:01:45.3]}
23... Bxe5 {[%clk 0:00:55]} 24. Rxe5 {[%clk 0:01:44.7]} 24... Qd1+ {[%clk
0:00:52.7]} 25. Qxd1 {[%clk 0:01:43.8]} 25... Bxd1 {[%clk 0:00:53.1]} 26. Ba2
{[%clk 0:01:43.2]} 26... Ba4 {[%clk 0:00:52.3]} 27. Bxd5 {[%clk 0:01:42.2]}
27... Nxd5 {[%clk 0:00:52]} 28. Rxd5 {[%clk 0:01:43.1]} 28... Bc6 {[%clk
0:00:51.8]} 29. Rc5 {[%clk 0:01:39.1]} 29... Rd8 {[%clk 0:00:51.7]} 30. Ra5
{[%clk 0:01:37.7]} 30... a6 {[%clk 0:00:50.2]} 31. Rc5 {[%clk 0:01:35.9]} 31...
Rxd4 {[%clk 0:00:49.9]} 32. g3 {[%clk 0:01:32.9]} 32... f6 {[%clk 0:00:47.8]}
33. Ke2 {[%clk 0:01:32.5]} 33... Kf7 {[%clk 0:00:46.8]} 34. Ke3 {[%clk
0:01:31.9]} 34... Rd1 {[%clk 0:00:46.8]} 35. Ke2 {[%clk 0:01:31.8]} 35... Rb1
{[%clk 0:00:46.8]} 36. Rc2 {[%clk 0:01:27.3]} 36... g5 {[%clk 0:00:46.1]} 37.
Ke3 {[%clk 0:01:25.9]} 37... Kg6 {[%clk 0:00:45.6]} 38. Kd4 {[%clk 0:01:26]}
38... g4 {[%clk 0:00:44]} 39. Ke3 {[%clk 0:01:23.6]} 39... Re1+ {[%clk
0:00:43.7]} 40. Kd4 {[%clk 0:01:20.3]} 40... Re5 {[%clk 0:00:43.7]} 41. b4
{[%clk 0:01:15.3]} 41... Bf3 {[%clk 0:00:43.2]} 42. Kc4 {[%clk 0:01:09.6]} 42...
Re2 {[%clk 0:00:43]} 43. Rxe2 {[%clk 0:01:09.6]} 43... Bxe2+ {[%clk 0:00:43.3]}
44. Kc5 {[%clk 0:01:10.5]} 44... Bf3 {[%clk 0:00:43.5]} 45. a4 {[%clk
0:01:10.4]} 45... Kf5 {[%clk 0:00:41.8]} 46. b5 {[%clk 0:01:10.5]} 46... axb5
{[%clk 0:00:41.7]} 47. axb5 {[%clk 0:01:11.4]} 47... Ke5 {[%clk 0:00:42.2]} 48.
Kc4 {[%clk 0:01:11.1]} 48... Kd6 {[%clk 0:00:41.9]} 49. Kd4 {[%clk 0:01:09.2]}
49... Bd5 {[%clk 0:00:42.3]} 50. Ke3 {[%clk 0:01:03.1]} 50... Kc5 {[%clk
0:00:41.5]} 51. Kf4 {[%clk 0:01:03.5]} 51... Bf3 {[%clk 0:00:41.8]} 52. Kf5
{[%clk 0:01:03.9]} 52... Kxb5 {[%clk 0:00:42.2]} 53. Kxf6 {[%clk 0:01:04.5]}
53... Kc4 {[%clk 0:00:43.1]} 54. Ke5 {[%clk 0:01:04.7]} 54... b5 {[%clk
0:00:44]} 55. Kf4 {[%clk 0:01:04.7]} 55... b4 {[%clk 0:00:44.9]} 56. Ke3 {[%clk
0:01:05.6]} 56... Kc3 {[%clk 0:00:45.2]} 0-1

[Event "Betsys MČR v online bleskovém šachu 2021"]
[Site "Chess.com"]
[Date "2021.04.17"]
[Round "7"]
[White "ghostdog777"]
[Black "MrNikdo"]
[Result "0-1"]
[WhiteElo "2109"]
[BlackElo "2051"]
[TimeControl "180+1"]
[EndTime "10:11:17 PDT"]
[Termination "Uživatel MrNikdo zvítězil na čas"]

1. Nf3 {[%clk 0:02:45.2]} 1... Nf6 {[%clk 0:02:59]} 2. c4 {[%clk 0:02:44.9]}
2... g6 {[%clk 0:02:59.4]} 3. g3 {[%clk 0:02:45]} 3... Bg7 {[%clk 0:02:59.9]} 4.
Bg2 {[%clk 0:02:45.9]} 4... d5 {[%clk 0:03:00.3]} 5. O-O {[%clk 0:02:46.8]} 5...
O-O {[%clk 0:02:55.5]} 6. cxd5 {[%clk 0:02:46.4]} 6... Nxd5 {[%clk 0:02:54.2]}
7. Nc3 {[%clk 0:02:47.3]} 7... c6 {[%clk 0:02:51.8]} 8. Qb3 {[%clk 0:02:39.4]}
8... Qb6 {[%clk 0:02:38.3]} 9. Nxd5 {[%clk 0:02:26.3]} 9... cxd5 {[%clk
0:02:39.2]} 10. Qxd5 {[%clk 0:02:25.4]} 10... Be6 {[%clk 0:02:37.1]} 11. Qe4
{[%clk 0:02:22.8]} 11... Nc6 {[%clk 0:02:31.7]} 12. a3 {[%clk 0:02:15.9]} 12...
Bxb2 {[%clk 0:02:11.9]} 13. Bxb2 {[%clk 0:02:06]} 13... Qxb2 {[%clk 0:02:12.8]}
14. Rfb1 {[%clk 0:02:02]} 14... Qf6 {[%clk 0:02:11.4]} 15. d3 {[%clk 0:01:55.9]}
15... Rac8 {[%clk 0:01:51.6]} 16. h4 {[%clk 0:01:51.4]} 16... Rfd8 {[%clk
0:01:45.2]} 17. Qa4 {[%clk 0:01:25.4]} 17... a6 {[%clk 0:01:34]} 18. Ng5 {[%clk
0:01:20.5]} 18... Nd4 {[%clk 0:01:27.6]} 19. Nxe6 {[%clk 0:00:48.4]} 19... Nxe2+
{[%clk 0:01:27]} 20. Kf1 {[%clk 0:00:41.8]} 20... Nxg3+ {[%clk 0:01:26.8]} 21.
Kg1 {[%clk 0:00:39.8]} 21... Ne2+ {[%clk 0:01:26.6]} 22. Kf1 {[%clk 0:00:39.4]}
22... Nc3 {[%clk 0:01:04.3]} 23. Qf4 {[%clk 0:00:11]} 23... Qxe6 {[%clk
0:01:01.1]} 24. Re1 {[%clk 0:00:09.1]} 24... Qd7 {[%clk 0:00:56.3]} 25. d4
{[%clk 0:00:07.4]} 25... Qb5+ {[%clk 0:00:52.8]} 26. Kg1 {[%clk 0:00:05.1]}
26... Ne2+ {[%clk 0:00:53]} 27. Rxe2 {[%clk 0:00:06]} 27... Qxe2 {[%clk
0:00:53.5]} 28. Bxb7 {[%clk 0:00:06]} 28... Rc2 {[%clk 0:00:52.1]} 29. d5 {[%clk
0:00:03.6]} 29... Rd6 {[%clk 0:00:47.2]} 30. Bc6 {[%clk 0:00:01.1]} 30... Rf6
{[%clk 0:00:46.5]} 0-1

[Event "Betsys MČR v online bleskovém šachu 2021"]
[Site "Chess.com"]
[Date "2021.04.17"]
[Round "7"]
[White "Trickov"]
[Black "Dvacetsekund"]
[Result "1-0"]
[WhiteElo "2398"]
[BlackElo "2200"]
[TimeControl "180+1"]
[EndTime "10:11:19 PDT"]
[Termination "Uživatel Trickov zvítězil po vzdání soupeře"]

1. d4 {[%clk 0:02:49.4]} 1... d5 {[%clk 0:02:57.6]} 2. Nf3 {[%clk 0:02:48.5]}
2... Nf6 {[%clk 0:02:55.6]} 3. c4 {[%clk 0:02:42.2]} 3... c6 {[%clk 0:02:53.9]}
4. Nc3 {[%clk 0:02:41.3]} 4... e6 {[%clk 0:02:53.2]} 5. g3 {[%clk 0:02:40.4]}
5... dxc4 {[%clk 0:02:52.7]} 6. a4 {[%clk 0:02:39.2]} 6... Bb4 {[%clk
0:02:33.8]} 7. Bg2 {[%clk 0:02:20.4]} 7... c5 {[%clk 0:02:24.4]} 8. O-O {[%clk
0:02:13.6]} 8... O-O {[%clk 0:02:23.3]} 9. Na2 {[%clk 0:02:01.9]} 9... Nc6
{[%clk 0:02:12.7]} 10. Nxb4 {[%clk 0:01:55.9]} 10... cxb4 {[%clk 0:02:13.6]} 11.
Qc2 {[%clk 0:01:50.5]} 11... Nxd4 {[%clk 0:02:02]} 12. Nxd4 {[%clk 0:01:39.8]}
12... Qxd4 {[%clk 0:02:02.9]} 13. Rd1 {[%clk 0:01:28.3]} 13... Qb6 {[%clk
0:01:51.4]} 14. Qxc4 {[%clk 0:01:23.9]} 14... Bd7 {[%clk 0:01:12.1]} 15. Be3
{[%clk 0:01:18.9]} 15... Qa5 {[%clk 0:01:04.5]} 16. Bxb7 {[%clk 0:01:11.8]}
16... Rab8 {[%clk 0:01:00.9]} 17. Qa6 {[%clk 0:01:06]} 17... Qc7 {[%clk
0:00:38.4]} 18. Bf3 {[%clk 0:01:05]} 18... Nd5 {[%clk 0:00:26.5]} 19. Rdc1
{[%clk 0:00:59.6]} 19... Qe5 {[%clk 0:00:18.5]} 20. Bc5 {[%clk 0:00:48.7]} 20...
Rfc8 {[%clk 0:00:07.7]} 21. Qxa7 {[%clk 0:00:33.5]} 21... Bc6 {[%clk 0:00:05.3]}
22. Bd4 {[%clk 0:00:27.7]} 22... Ra8 {[%clk 0:00:04.5]} 23. Qxa8 {[%clk
0:00:21.5]} 1-0

[Event "Betsys MČR v online bleskovém šachu 2021"]
[Site "Chess.com"]
[Date "2021.04.17"]
[Round "7"]
[White "catanist19"]
[Black "MatyldaCZ"]
[Result "1-0"]
[WhiteElo "1733"]
[BlackElo "1401"]
[TimeControl "180+1"]
[EndTime "10:11:19 PDT"]
[Termination "Uživatel catanist19 zvítězil matem"]

1. d4 {[%clk 0:02:58.3]} 1... Nf6 {[%clk 0:02:59.5]} 2. c4 {[%clk 0:02:57.2]}
2... d6 {[%clk 0:02:59.6]} 3. Nc3 {[%clk 0:02:56.2]} 3... g6 {[%clk 0:02:58.6]}
4. e4 {[%clk 0:02:55.1]} 4... Nbd7 {[%clk 0:02:57.7]} 5. f4 {[%clk 0:02:53.7]}
5... Bg7 {[%clk 0:02:53.2]} 6. Nf3 {[%clk 0:02:52.1]} 6... O-O {[%clk
0:02:51.4]} 7. Bd3 {[%clk 0:02:47.8]} 7... Re8 {[%clk 0:02:48.8]} 8. O-O {[%clk
0:02:45.5]} 8... e5 {[%clk 0:02:48]} 9. fxe5 {[%clk 0:02:40.1]} 9... dxe5 {[%clk
0:02:48.2]} 10. dxe5 {[%clk 0:02:37.1]} 10... Nxe5 {[%clk 0:02:48.6]} 11. Nxe5
{[%clk 0:02:31.3]} 11... Rxe5 {[%clk 0:02:49]} 12. Bf4 {[%clk 0:02:25.3]} 12...
Re8 {[%clk 0:02:47.6]} 13. Bg5 {[%clk 0:02:16.3]} 13... Be6 {[%clk 0:02:38.7]}
14. Nd5 {[%clk 0:01:51]} 14... Bxd5 {[%clk 0:02:37.4]} 15. cxd5 {[%clk
0:01:43.9]} 15... Re5 {[%clk 0:02:37.5]} 16. Bf4 {[%clk 0:01:30.6]} 16... Re8
{[%clk 0:02:34.4]} 17. Qf3 {[%clk 0:01:22.5]} 17... Qd7 {[%clk 0:02:32.2]} 18.
Bg5 {[%clk 0:01:14.1]} 18... Ng4 {[%clk 0:02:13.8]} 19. Rab1 {[%clk 0:01:01.4]}
19... Ne5 {[%clk 0:02:12.3]} 20. Qe2 {[%clk 0:00:56.2]} 20... Nxd3 {[%clk
0:02:10.3]} 21. Qxd3 {[%clk 0:00:55.3]} 21... Qg4 {[%clk 0:02:08.2]} 22. Bf4
{[%clk 0:00:40.2]} 22... g5 {[%clk 0:02:02.9]} 23. Bxc7 {[%clk 0:00:35.5]} 23...
Rxe4 {[%clk 0:01:57.8]} 24. Qf3 {[%clk 0:00:29]} 24... Qxf3 {[%clk 0:01:55.8]}
25. Rxf3 {[%clk 0:00:26]} 25... Re2 {[%clk 0:01:56.1]} 26. Rd3 {[%clk
0:00:18.1]} 26... Bxb2 {[%clk 0:01:52.8]} 27. d6 {[%clk 0:00:15.3]} 27... Rc2
{[%clk 0:01:40.5]} 28. d7 {[%clk 0:00:13.5]} 28... Rxc7 {[%clk 0:01:38]} 29.
d8=Q+ {[%clk 0:00:12.9]} 29... Rxd8 {[%clk 0:01:36.6]} 30. Rxd8+ {[%clk
0:00:12.6]} 30... Kg7 {[%clk 0:01:37.1]} 31. Rxb2 {[%clk 0:00:12.4]} 31... h6
{[%clk 0:01:36.7]} 32. Re2 {[%clk 0:00:10.5]} 32... Rc1+ {[%clk 0:01:35.1]} 33.
Kf2 {[%clk 0:00:10.3]} 33... Rc6 {[%clk 0:01:35.2]} 34. Rd7 {[%clk 0:00:08.6]}
34... Rf6+ {[%clk 0:01:35]} 35. Kg3 {[%clk 0:00:07.7]} 35... b6 {[%clk
0:01:34.9]} 36. Rf2 {[%clk 0:00:07.1]} 36... Rxf2 {[%clk 0:01:32.1]} 37. Kxf2
{[%clk 0:00:06.5]} 37... a5 {[%clk 0:01:32.6]} 38. Rd6 {[%clk 0:00:05.8]} 38...
b5 {[%clk 0:01:33]} 39. Rd5 {[%clk 0:00:05.1]} 39... b4 {[%clk 0:01:31.9]} 40.
Rxa5 {[%clk 0:00:04.7]} 40... Kg6 {[%clk 0:01:31.2]} 41. Rb5 {[%clk 0:00:03.9]}
41... f6 {[%clk 0:01:30.9]} 42. Rxb4 {[%clk 0:00:03.9]} 42... Kf7 {[%clk
0:01:30.7]} 43. a4 {[%clk 0:00:03.8]} 43... Ke7 {[%clk 0:01:30]} 44. a5 {[%clk
0:00:03.9]} 44... Kd7 {[%clk 0:01:30.7]} 45. a6 {[%clk 0:00:04]} 45... Ke7
{[%clk 0:01:31.4]} 46. a7 {[%clk 0:00:04]} 46... Kf7 {[%clk 0:01:31.9]} 47. a8=Q
{[%clk 0:00:03.8]} 47... Kg6 {[%clk 0:01:32.3]} 48. Qe4+ {[%clk 0:00:03.7]}
48... Kg7 {[%clk 0:01:30.7]} 49. Qf5 {[%clk 0:00:02.6]} 49... Kf7 {[%clk
0:01:30.3]} 50. Rb7+ {[%clk 0:00:02]} 50... Kf8 {[%clk 0:01:29]} 51. Qc8# {[%clk
0:00:01.8]} 1-0

[Event "Betsys MČR v online bleskovém šachu 2021"]
[Site "Chess.com"]
[Date "2021.04.17"]
[Round "7"]
[White "lupinek23"]
[Black "Richter_Rudolf"]
[Result "0-1"]
[WhiteElo "1607"]
[BlackElo "1354"]
[TimeControl "180+1"]
[EndTime "10:11:22 PDT"]
[Termination "Uživatel Richter_Rudolf zvítězil matem"]

1. e4 {[%clk 0:03:00.9]} 1... c5 {[%clk 0:02:58.9]} 2. Nf3 {[%clk 0:03:00.1]}
2... Nc6 {[%clk 0:02:58.1]} 3. d4 {[%clk 0:02:58.9]} 3... cxd4 {[%clk
0:02:55.8]} 4. Nxd4 {[%clk 0:02:58.2]} 4... Nf6 {[%clk 0:02:56.1]} 5. Bc4 {[%clk
0:02:54.9]} 5... e5 {[%clk 0:02:33.9]} 6. Nb5 {[%clk 0:02:48.4]} 6... d6 {[%clk
0:02:18.8]} 7. O-O {[%clk 0:02:41.1]} 7... a6 {[%clk 0:01:44.3]} 8. N5c3 {[%clk
0:02:36]} 8... Be7 {[%clk 0:01:38]} 9. Bg5 {[%clk 0:02:31.9]} 9... h6 {[%clk
0:01:08.3]} 10. Bxf6 {[%clk 0:02:30.4]} 10... Bxf6 {[%clk 0:01:07.6]} 11. Nd5
{[%clk 0:02:30.5]} 11... Be6 {[%clk 0:01:05.1]} 12. Nbc3 {[%clk 0:02:28.7]}
12... b5 {[%clk 0:01:03.2]} 13. Bb3 {[%clk 0:02:23.8]} 13... Nd4 {[%clk
0:00:57.2]} 14. Ne2 {[%clk 0:02:18.9]} 14... Nxb3 {[%clk 0:00:55.6]} 15. axb3
{[%clk 0:02:17.7]} 15... O-O {[%clk 0:00:55.2]} 16. Nxf6+ {[%clk 0:02:15]} 16...
Qxf6 {[%clk 0:00:53.8]} 17. Qxd6 {[%clk 0:02:13.5]} 17... Rfd8 {[%clk
0:00:42.1]} 18. Qc5 {[%clk 0:02:08.8]} 18... Rac8 {[%clk 0:00:41.2]} 19. Qe3
{[%clk 0:02:07.3]} 19... Rd7 {[%clk 0:00:34.4]} 20. Rad1 {[%clk 0:02:01.3]}
20... Rxd1 {[%clk 0:00:29.7]} 21. Rxd1 {[%clk 0:02:00]} 21... Rxc2 {[%clk
0:00:29.5]} 22. f4 {[%clk 0:01:45.9]} 22... Bxb3 {[%clk 0:00:22]} 23. Qxb3
{[%clk 0:01:38.9]} 23... Rxe2 {[%clk 0:00:21.3]} 24. Rf1 {[%clk 0:01:23.3]}
24... Qg6 {[%clk 0:00:17.9]} 25. Qf3 {[%clk 0:01:18.2]} 25... Rxb2 {[%clk
0:00:14.5]} 26. fxe5 {[%clk 0:01:17.7]} 26... Qb6+ {[%clk 0:00:13.8]} 27. Kh1
{[%clk 0:01:16.7]} 27... b4 {[%clk 0:00:13.8]} 28. Qxf7+ {[%clk 0:01:16.3]}
28... Kh7 {[%clk 0:00:12.6]} 29. e6 {[%clk 0:01:08]} 29... Qc6 {[%clk
0:00:06.5]} 30. e7 {[%clk 0:00:57.1]} 30... Qxe4 {[%clk 0:00:06.4]} 31. Qf5+
{[%clk 0:00:50.3]} 31... Qxf5 {[%clk 0:00:04.9]} 32. Re1 {[%clk 0:00:44.3]}
32... Qg5 {[%clk 0:00:05.1]} 33. g3 {[%clk 0:00:42.7]} 33... Qd5+ {[%clk
0:00:04.9]} 34. Kg1 {[%clk 0:00:41.7]} 34... Qg2# {[%clk 0:00:04.6]} 0-1

[Event "Betsys MČR v online bleskovém šachu 2021"]
[Site "Chess.com"]
[Date "2021.04.17"]
[Round "7"]
[White "marosino"]
[Black "EDA16"]
[Result "1-0"]
[WhiteElo "1571"]
[BlackElo "1250"]
[TimeControl "180+1"]
[EndTime "10:11:24 PDT"]
[Termination "Uživatel marosino zvítězil matem"]

1. b3 {[%clk 0:01:34.1]} 1... Nf6 {[%clk 0:02:50.2]} 2. Bb2 {[%clk 0:01:33.7]}
2... g6 {[%clk 0:02:49.4]} 3. g3 {[%clk 0:01:34.6]} 3... Bg7 {[%clk 0:02:48.5]}
4. Bg2 {[%clk 0:01:35.5]} 4... O-O {[%clk 0:02:47.3]} 5. e3 {[%clk 0:01:35.5]}
5... d6 {[%clk 0:02:46.3]} 6. d4 {[%clk 0:01:35.4]} 6... Bf5 {[%clk 0:02:43]} 7.
Ne2 {[%clk 0:01:34.5]} 7... Nbd7 {[%clk 0:02:42.6]} 8. O-O {[%clk 0:01:33.9]}
8... c6 {[%clk 0:02:42.3]} 9. c4 {[%clk 0:01:33.7]} 9... Qb6 {[%clk 0:02:38.5]}
10. Nbc3 {[%clk 0:01:31.2]} 10... Rac8 {[%clk 0:02:36.9]} 11. a4 {[%clk
0:01:29.2]} 11... c5 {[%clk 0:02:34.9]} 12. a5 {[%clk 0:01:28.8]} 12... Qc7
{[%clk 0:02:30.9]} 13. dxc5 {[%clk 0:01:28.4]} 13... Nxc5 {[%clk 0:02:27.9]} 14.
Nd5 {[%clk 0:01:24.9]} 14... Nxd5 {[%clk 0:02:24]} 15. Bxg7 {[%clk 0:01:24.3]}
15... Kxg7 {[%clk 0:02:21.7]} 16. Bxd5 {[%clk 0:01:23.4]} 16... e6 {[%clk
0:02:14.7]} 17. Bg2 {[%clk 0:01:19.2]} 17... Be4 {[%clk 0:02:06.7]} 18. Qd4+
{[%clk 0:01:13.5]} 18... Kg8 {[%clk 0:02:01.3]} 19. Bxe4 {[%clk 0:01:12.8]}
19... e5 {[%clk 0:01:53]} 20. Qd5 {[%clk 0:01:09.1]} 20... Nxe4 {[%clk
0:01:50.3]} 21. Qxe4 {[%clk 0:01:08.8]} 21... Qc6 {[%clk 0:01:46.7]} 22. Qxc6
{[%clk 0:01:07.6]} 22... Rxc6 {[%clk 0:01:45.9]} 23. Rfc1 {[%clk 0:01:07.2]}
23... Rd8 {[%clk 0:01:41.1]} 24. b4 {[%clk 0:01:06.8]} 24... a6 {[%clk
0:01:38.9]} 25. b5 {[%clk 0:01:06]} 25... axb5 {[%clk 0:01:36.6]} 26. cxb5
{[%clk 0:01:06.2]} 26... Rxc1+ {[%clk 0:01:34.1]} 27. Rxc1 {[%clk 0:01:05.7]}
27... Rb8 {[%clk 0:01:28.3]} 28. a6 {[%clk 0:01:03.6]} 28... b6 {[%clk
0:01:25.1]} 29. a7 {[%clk 0:01:02.9]} 29... Ra8 {[%clk 0:01:23.5]} 30. Rc7
{[%clk 0:01:02.3]} 30... Kg7 {[%clk 0:01:15.7]} 31. Rb7 {[%clk 0:01:02]} 31...
h5 {[%clk 0:01:12.8]} 32. Nc3 {[%clk 0:01:00.9]} 32... Kf6 {[%clk 0:01:09.5]}
33. Nd5+ {[%clk 0:01:00.5]} 33... Ke6 {[%clk 0:01:06.5]} 34. Nxb6 {[%clk
0:01:00.3]} 34... Re8 {[%clk 0:00:51.1]} 35. a8=Q {[%clk 0:00:58.5]} 35... Rxa8
{[%clk 0:00:45.5]} 36. Nxa8 {[%clk 0:00:58.4]} 36... Kd5 {[%clk 0:00:40.3]} 37.
b6 {[%clk 0:00:58.3]} 37... Kc6 {[%clk 0:00:40]} 38. Rxf7 {[%clk 0:00:57.7]}
38... d5 {[%clk 0:00:37.9]} 39. b7 {[%clk 0:00:56.9]} 39... d4 {[%clk 0:00:30]}
40. exd4 {[%clk 0:00:55.9]} 40... exd4 {[%clk 0:00:29.7]} 41. b8=Q {[%clk
0:00:55.6]} 41... d3 {[%clk 0:00:29.2]} 42. Qd8 {[%clk 0:00:54.3]} 42... d2
{[%clk 0:00:25.2]} 43. Rc7+ {[%clk 0:00:53.8]} 43... Kb5 {[%clk 0:00:21.5]} 44.
Qb8+ {[%clk 0:00:52.2]} 44... Ka5 {[%clk 0:00:20.4]} 45. Ra7# {[%clk 0:00:52.1]}
1-0